{"text_format":"1","workbook":"xlsx","n_sheets":9,"sheets":["Daten","Strukturbilanz","Strukturbilanz_L","Kennz1","Kennz1_L","Kennz2","Kennz2_L","Kennz3","Kennz3_L"],"not_rendered":{"charts":0,"images":0,"macros":1,"external_links":0,"defined_names":9,"comments":0,"pivot_tables":0},"unopened":[],"bounds":{"document_bytes":16777216,"sheet_cells":100000,"rows_first":2000,"rows_last":500,"rows_between":2000,"halvings":0,"cell_chars":16384,"cell_head_chars":4096},"cells_cut":0,"cells_raw":0,"read":"whole","date_system":"1900"}

{"sheet":"Daten","index":0,"n_rows":48,"n_cols":9,"rows_kept":48,"cut":false,"hidden":false,"merged":[[33,3,34,3],[33,6,34,6],[32,4,32,7]]}
[]
[]
[null,null,"Lernmodul M 04:"]
[null,null,"Betriebswirtschaftliche Kennzahlen"]
[]
[null,null,"Thema: Bilanzanalyse"]
[]
[null,null,"Aufgabe und Anliegen einer Bilanzanalyse ist es, Aussagen vor allem zur"]
[]
[null,null,"  - Vermögenslage,"]
[null,null,"  - Finanzlage,"]
[null,null,"  - Liquiditätslage und"]
[null,null,"  - Ertragslage "]
[null,null," "]
[null,null,"eines Unternehmens  zu machen."]
[null,null,"Damit sollen vor allem die Informationsbedürfnisse externer Adressaten (wie Anteils-"]
[null,null,"eigner, Gläubiger, Finanzamt u.a.), aber auch interner Informationsempfänger "]
[null,null,"(Unternehmensleitung, Arbeitnehmer)  befriedigt werden-"]
[]
[null,null,"Fallbeispiel:"]
[]
[null,null,"Die Fa. PCX GmbH hat ihre Bilanz unter Berücksichtigung einer teilweisen Verwendung des"]
[null,null,"Jahresgewinns  (für eine Einstellung in die Gewinnrücklage) zur Analyse vorbereitet."]
[]
[null,null,"Der Bilanzgewinn soll auf Beschluss der Gesellschafterversammlung kurzfristig in voller Höhe "]
[null,null,"ausgeschüttet  werden, er wird daher im Rahmen der Bilanzaufbereitung den kurzfristigen"]
[null,null,"Verbindlichkeiten zugeordnet."]
[null,null,"Die Rückstellungen sind je zur Hälfte als kurzfristige bzw. als langfristige Rückstellungen"]
[null,null,"zu behandeln."]
[null,null,"Die Daten für die Bilanzanalyse sind der nachfolgenden Tabelle zu entnehmen."]
[]
[]
[null,null,null,"AKTIVA","Bilanz der PCX GmbH (Angaben in1.000 EUR)",null,null,null,"PASSIVA"]
[null,null,null,"Position","Berichtsjahr","Vorjahr","Position","Berichtsjahr","Vorjahr"]
[null,null,null,null,{"$f":"YEAR(NOW())-1","v":2021},{"$f":"YEAR(NOW())-2","v":2020},null,{"$f":"YEAR(NOW())-1","v":2021},{"$f":"YEAR(NOW())-2","v":2020}]
[null,null,null,"Sachanlagen",6960,6220,"Gez. Kapital",6800,6000]
[null,null,null,"Finanzanlagen",860,800,"Gewinnrücklagen",1400,960]
[null,null,null,null,null,null,"Bilanzgewinn",{"$f":"E42-H36-H37-H39-H40-H41","v":500},{"$f":"F42-I36-I37-I39-I40-I41","v":300}]
[null,null,null,"Vorräte",4860,6050,"Rückstellungen",320,240]
[null,null,null,"Forderungen",2300,1350,"Langfr. Verbindlichkeiten",5560,4860]
[null,null,null,"Flüssige Mittel",1020,580,"Kurzfr. Verbindlichkeiten",1420,2640]
[null,null,null,"Summe",{"$f":"SUM(E36:E41)","v":16000},{"$f":"SUM(F36:F41)","v":15000},null,{"$f":"SUM(H36:H41)","v":16000},{"$f":"SUM(I36:I41)","v":15000}]
[]
[null,null,null,"Aufgaben:"]
[null,null,null,"1. Es sind die Bilanzdaten nach Gesichtspunkten einer Bilanzanalyse (Struktur-Bilanz) zu ordnen!"]
[]
[null,null,null,"2. Es sind die typischen Kennzahlen zur Bilanzanalyse zu ermitteln und im Vergleich"]
[null,null,null,"   der beiden Perioden auszuwerten!"]

{"sheet":"Strukturbilanz","index":1,"n_rows":33,"n_cols":8,"rows_kept":33,"cut":false,"hidden":false,"merged":[[8,2,9,2],[19,2,20,2],[6,3,6,4]]}
[]
[]
[null,null,{"$f":"Daten!C3","v":"Lernmodul M 04:"}]
[null,null,{"$f":"Daten!C4","v":"Betriebswirtschaftliche Kennzahlen"}]
[]
[null,null,{"$f":"Daten!C6","v":"Thema: Bilanzanalyse"}]
[null,null,null,"Strukturbilanz"]
[]
[null,null,"AKTIVA","Berichtsjahr","%","Vorjahr","%","Veränderung"]
[null,null,null,{"$f":"YEAR(NOW())-1","v":2021},null,{"$f":"YEAR(NOW())-2","v":2020},null,"absolut"]
[null,null,"Sachanlagen"]
[null,null,"Finanzanlagen"]
[null,null,"Anlagevermögen"]
[null,null,"Vorräte"]
[null,null,"Forderungen"]
[null,null,"Flüssige Mittel"]
[null,null,"Umlaufvermögen"]
[null,null,"Gesamtvermögen"]
[]
[null,null,"PASSIVA","Berichtsjahr","%","Vorjahr","%","Veränderung"]
[null,null,null,{"$f":"YEAR(NOW())-1","v":2021},null,{"$f":"YEAR(NOW())-2","v":2020},null,"absolut"]
[null,null,"Gez. Kapital"]
[null,null,"Gewinnrücklagen"]
[null,null,"Eigenkapital"]
[null,null,"Langfr. Rückstellungen"]
[null,null,"Langfr. Verbindlichkeiten"]
[null,null,"Langfr. Fremdkapital"]
[null,null,"Kurzfr. Rückstellungen"]
[null,null,"Kurzfr. Verbindlichkeiten"]
[null,null,"Kurzfr. Fremdkapital"]
[null,null,"Gesamtkapital"]
[]
[null,null,"Anmerkungen:"]

{"sheet":"Strukturbilanz_L","index":2,"n_rows":42,"n_cols":8,"rows_kept":42,"cut":false,"hidden":true,"merged":[[8,2,9,2],[19,2,20,2],[6,3,6,5]]}
[]
[]
[null,null,{"$f":"Daten!C3","v":"Lernmodul M 04:"}]
[null,null,{"$f":"Daten!C4","v":"Betriebswirtschaftliche Kennzahlen"}]
[]
[null,null,{"$f":"Daten!C6","v":"Thema: Bilanzanalyse"}]
[null,null,null,"Strukturbilanz: Musterlösung"]
[]
[null,null,"AKTIVA","Berichtsjahr","%","Vorjahr","%","Veränderung"]
[null,null,null,{"$f":"YEAR(NOW())-1","v":2021},null,{"$f":"YEAR(NOW())-2","v":2020},null,"absolut"]
[null,null,"Sachanlagen",{"$f":"Daten!E36","v":6960},{"$f":"D11*100/D18","v":43.5},{"$f":"Daten!F36","v":6220},{"$f":"F11*100/F18","v":41.466666666666669},{"$f":"D11-F11","v":740}]
[null,null,"Finanzanlagen",{"$f":"Daten!E37","v":860},{"$f":"D12*100/D18","v":5.375},{"$f":"Daten!F37","v":800},{"$f":"F12*100/F18","v":5.333333333333333},60]
[null,null,"Anlagevermögen",{"$f":"D11+D12","v":7820},{"$f":"E11+E12","v":48.875},{"$f":"F11+F12","v":7020},{"$f":"G11+G12","v":46.800000000000004},800]
[null,null,"Vorräte",{"$f":"Daten!E39","v":4860},{"$f":"D14*100/D18","v":30.375},{"$f":"Daten!F39","v":6050},{"$f":"F14*100/F18","v":40.333333333333336},-1190]
[null,null,"Forderungen",{"$f":"Daten!E40","v":2300},{"$f":"D15*100/D18","v":14.375},{"$f":"Daten!F40","v":1350},{"$f":"F15*100/F18","v":9},950]
[null,null,"Flüssige Mittel",{"$f":"Daten!E41","v":1020},{"$f":"D16*100/D18","v":6.375},{"$f":"Daten!F41","v":580},{"$f":"F16*100/F18","v":3.8666666666666667},440]
[null,null,"Umlaufvermögen",{"$f":"D14+D15+D16","v":8180},{"$f":"E14+E15+E16","v":51.125},{"$f":"F14+F15+F16","v":7980},{"$f":"G14+G15+G16","v":53.2},200]
[null,null,"Gesamtvermögen",{"$f":"D13+D17","v":16000},{"$f":"E13+E17","v":100},{"$f":"F13+F17","v":15000},{"$f":"G13+G17","v":100},{"$f":"D18-F18","v":1000}]
[]
[null,null,"PASSIVA","Berichtsjahr","%","Vorjahr","%","Veränderung"]
[null,null,null,{"$f":"YEAR(NOW())-1","v":2021},null,{"$f":"YEAR(NOW())-2","v":2020},null,"absolut"]
[null,null,"Gez. Kapital",{"$f":"Daten!H36","v":6800},{"$f":"D22*100/$D$31","v":42.5},{"$f":"Daten!I36","v":6000},{"$f":"F22*100/$F$31","v":40},{"$f":"D22-F22","v":800}]
[null,null,"Gewinnrücklagen",{"$f":"Daten!H37","v":1400},{"$f":"D23*100/$D$31","v":8.75},{"$f":"Daten!I37","v":960},{"$f":"F23*100/$F$31","v":6.4},440]
[null,null,"Eigenkapital",{"$f":"D22+D23","v":8200},51.25,{"$f":"F22+F23","v":6960},46.4,1240]
[null,null,"Langfr. Rückstellungen",{"$f":"Daten!H39/2","v":160},1,{"$f":"Daten!I39/2","v":120},0.8,40]
[null,null,"Langfr. Verbindlichkeiten",{"$f":"Daten!H40","v":5560},34.75,{"$f":"Daten!I40","v":4860},32.4,700]
[null,null,"Langfr. Fremdkapital",{"$f":"D25+D26","v":5720},35.75,{"$f":"F25+F26","v":4980},33.200000000000003,740]
[null,null,"Kurzfr. Rückstellungen",{"$f":"Daten!H39/2","v":160},1,{"$f":"Daten!I39/2","v":120},0.8,40]
[null,null,"Kurzfr. Verbindlichkeiten",{"$f":"Daten!H41+Daten!H38","v":1920},12,{"$f":"Daten!I41+Daten!I38","v":2940},19.600000000000001,-1020]
[null,null,"Kurzfr. Fremdkapital",{"$f":"D28+D29","v":2080},13,{"$f":"F28+F29","v":3060},20.399999999999999,-980]
[null,null,"Gesamtkapital",{"$f":"D24+D27+D30","v":16000},{"$f":"E24+E27+E30","v":100},{"$f":"F24+F27+F30","v":15000},{"$f":"G24+G27+G30","v":100},{"$f":"D31-F31","v":1000}]
[]
[null,null,"Erläuterungen:"]
[]
[null,null,"Die Struktur-Bilanz bildet die Grundlage für die Kennzahlen-Ermittlung."]
[null,null,"In der Struktur-Bilanz sollten die Abschlusswerte für 2 Stichtage sowie die Prozentsätze "]
[null,null,"aufgeführt (Bilanzsumme = 100 %)."]
[null,null,"Börsenfähige Wertpapiere und aktive Rechungsabgrenzungsposten sind den"]
[null,null,"liquiden Mitteln zuzuordnen."]
[null,null,"Rückstellungen und Verbindlichkeiten sind zwei Gruppen zuzuorden:"]
[null,null,"a) kurzfristg: Im Folgejahr auszahlungswirksam,"]
[null,null,"b) langfristig: im Folgejahr nicht auszahlungswirksam."]

{"sheet":"Kennz1","index":3,"n_rows":48,"n_cols":7,"rows_kept":48,"cut":false,"hidden":false,"merged":[[6,3,6,5],[23,3,23,4]]}
[]
[]
[null,null,{"$f":"Daten!C3","v":"Lernmodul M 04:"}]
[null,null,{"$f":"Daten!C4","v":"Betriebswirtschaftliche Kennzahlen"}]
[]
[null,null,{"$f":"Daten!C6","v":"Thema: Bilanzanalyse"}]
[null,null," ","Analyse der Vermögensstruktur"]
[]
[null,null,"Angaben in [1000 EUR]",null,null,"Berichtsjahr","Vorjahr"]
[]
[]
[null,null,"Anlagenintensität [%]"]
[]
[null,null,"Angaben in [1000 EUR]",null,null,"Berichtsjahr","Vorjahr"]
[]
[]
[null,null,"Anteil des Umlaufvermögen [%]"]
[]
[null,null,"Angaben in [1000 EUR]",null,null,"Berichtsjahr","Vorjahr"]
[null,null,"(aus d. GuV-Rechnung bekannte) Gesamtleistung",null,null,8480,5520]
[null,null,null,null,"Sachanlagen"]
[null,null,"Ausnutzungsgrad d. Sachanlagen [EUR/1000 EUR]"]
[]
[null,null,null,"Analyse der Anlagendeckung"]
[]
[null,null,"Angaben in [1000 EUR]",null,null,"Berichtsjahr","Vorjahr"]
[]
[]
[null,null,"Deckungsgrad 1 [%]"]
[]
[null,null,"Angaben in [1000 EUR]",null,null,"Berichtsjahr","Vorjahr"]
[]
[]
[]
[null,null,"Deckungsgrad 2 [%]"]
[]
[]
[null,null,"Vermögensdeckungsrechnung",null,"Berichtsjahr","Vorjahr","Veränderung"]
[]
[]
[null,null,"= Über- oder Unterdeckung "]
[null,null,"   durch Eigenkapital"]
[]
[null,null,"= langfr. Kapital zur Finanzierung"]
[null,null,"   des Umlaufvermögens"]
[]
[null,null,"= notwendiges kurzfrist. Fremdkapital zur"]
[null,null,"   Finanzierung des Umlaufvermögens"]

{"sheet":"Kennz1_L","index":4,"n_rows":48,"n_cols":7,"rows_kept":48,"cut":false,"hidden":true,"merged":[[6,3,6,5],[23,3,23,5]]}
[]
[]
[null,null,{"$f":"Daten!C3","v":"Lernmodul M 04:"}]
[null,null,{"$f":"Daten!C4","v":"Betriebswirtschaftliche Kennzahlen"}]
[]
[null,null,{"$f":"Daten!C6","v":"Thema: Bilanzanalyse"}]
[null,null," ","Analyse der Vermögensstruktur: Musterlösung"]
[]
[null,null,"Angaben in [1000 EUR]",null,null,"Berichtsjahr","Vorjahr"]
[null,null,null,null,"Anlagevermögen",{"$f":"Strukturbilanz_L!D13","v":7820},{"$f":"Strukturbilanz_L!F13","v":7020}]
[null,null,null,null,"Gesamtvermögen",{"$f":"Strukturbilanz_L!D18","v":16000},{"$f":"Strukturbilanz_L!F18","v":15000}]
[null,null,"Anlagenintensität [%]",null,null,{"$f":"F10*100/F11","v":48.875},{"$f":"G10*100/G11","v":46.8}]
[]
[null,null,"Angaben in [1000 EUR]",null,null,"Berichtsjahr","Vorjahr"]
[null,null,null,null,"Umlaufvermögen",{"$f":"Strukturbilanz_L!D17","v":8180},{"$f":"Strukturbilanz_L!F17","v":7980}]
[null,null,null,null,"Gesamtvermögen",{"$f":"Strukturbilanz_L!D18","v":16000},{"$f":"Strukturbilanz_L!F18","v":15000}]
[null,null,"Anteil des Umlaufvermögen [%]",null,null,{"$f":"F15*100/F16","v":51.125},{"$f":"G15*100/G16","v":53.2}]
[]
[null,null,"Angaben in [1000 EUR]",null,null,"Berichtsjahr","Vorjahr"]
[null,null,"(aus d. GuV-Rechnung bekannte) Gesamtleistung",null,null,8480,5520]
[null,null,null,null,"Sachanlagen",{"$f":"Strukturbilanz_L!D11","v":6960},{"$f":"Strukturbilanz_L!F11","v":6220}]
[null,null,"Ausnutzungsgrad d. Sachanlagen [EUR/1000 EUR]",null,null,{"$f":"F20*1000/F21","v":1218.3908045977012},{"$f":"G20*1000/G21","v":887.45980707395495}]
[]
[null,null,null,"Analyse der Anlagendeckung: Musterlösung"]
[]
[null,null,"Angaben in [1000 EUR]",null,null,"Berichtsjahr","Vorjahr"]
[null,null,null,null,"Eigenkapital",{"$f":"Strukturbilanz_L!D24","v":8200},{"$f":"Strukturbilanz_L!F24","v":6960}]
[null,null,null,null,"Anlagevermögen",{"$f":"Strukturbilanz_L!D13","v":7820},{"$f":"Strukturbilanz_L!F13","v":7020}]
[null,null,"Deckungsgrad 1 [%]",null,null,{"$f":"F27*100/F28","v":104.85933503836317},{"$f":"G27*100/G28","v":99.145299145299148}]
[]
[null,null,"Angaben in [1000 EUR]",null,null,"Berichtsjahr","Vorjahr"]
[null,null,null,null,"Langfr. Fremdkapital",{"$f":"Strukturbilanz_L!D27","v":5720},{"$f":"Strukturbilanz_L!F27","v":4980}]
[null,null,null,null,"Eigenkapital",{"$f":"Strukturbilanz_L!D24","v":8200},{"$f":"Strukturbilanz_L!F24","v":6960}]
[null,null,null,null,"Anlagevermögen",{"$f":"Strukturbilanz_L!D13","v":7820},{"$f":"Strukturbilanz_L!F13","v":7020}]
[null,null,"Deckungsgrad 2 [%]",null,null,{"$f":"(F32+F33)*100/F34","v":178.00511508951408},{"$f":"(G32+G33)*100/G34","v":170.08547008547009}]
[]
[]
[null,null,"Vermögensdeckungsrechnung",null,"Berichtsjahr","Vorjahr","Veränderung"]
[null,null,"   Eigenkapital",null,{"$f":"Strukturbilanz_L!D24","v":8200},{"$f":"Strukturbilanz_L!F24","v":6960},{"$f":"E39-F39","v":1240}]
[null,null,"./. Anlagevermögen",null,{"$f":"Strukturbilanz_L!D13","v":7820},{"$f":"Strukturbilanz_L!F13","v":7020},{"$f":"E40-F40","v":800}]
[null,null,"= Über- oder Unterdeckung "]
[null,null,"   durch Eigenkapital",null,{"$f":"E39-E40","v":380},{"$f":"F39-F40","v":-60},{"$f":"E42-F42","v":440}]
[null,null,"+ Langfristiges Fremdkapital",null,{"$f":"Strukturbilanz_L!D27","v":5720},{"$f":"Strukturbilanz_L!F27","v":4980},{"$f":"E43-F43","v":740}]
[null,null,"= langfr. Kapital zur Finanzierung"]
[null,null,"   des Umlaufvermögens",null,{"$f":"E42+E43","v":6100},{"$f":"F42+F43","v":4920},{"$f":"E45-F45","v":1180}]
[null,null,"./. Umlaufvermögen",null,{"$f":"Strukturbilanz_L!D17","v":8180},{"$f":"Strukturbilanz_L!F17","v":7980}]
[null,null,"= notwendiges kurzfrist. Fremdkapital zur"]
[null,null,"   Finanzierung des Umlaufvermögens",null,{"$f":"E45-E46","v":-2080},{"$f":"F45-F46","v":-3060},{"$f":"E48-F48","v":980}]

{"sheet":"Kennz2","index":5,"n_rows":32,"n_cols":7,"rows_kept":32,"cut":false,"hidden":false,"merged":[[6,3,6,5]]}
[]
[]
[null,null,{"$f":"Daten!C3","v":"Lernmodul M 04:"}]
[null,null,{"$f":"Daten!C4","v":"Betriebswirtschaftliche Kennzahlen"}]
[]
[null,null,{"$f":"Daten!C6","v":"Thema: Bilanzanalyse"}]
[null,null,null," Analyse der Kapitalausstattung"]
[]
[null,null,null,null,null,"Berichtsjahr","Vorjahr"]
[]
[]
[null,null,"  Eigenkapitalquote [%]"]
[]
[null,null,null,null,null,"Berichtsjahr","Vorjahr"]
[]
[]
[null,null,"  Grad der Verschuldung [%]"]
[]
[null,null,null,null,null,"Berichtsjahr","Vorjahr"]
[]
[]
[null,null," Anteil des langfr. Fremdkapitals [%]"]
[]
[null,null,null,null,null,"Berichtsjahr","Vorjahr"]
[]
[]
[null,null,"  Anteil des kurzfr. Fremdkapitals [%]"]
[]
[null,null,null,null,null,"Berichtsjahr","Vorjahr"]
[]
[null,null,null,null,"Nominalkapital"]
[null,null," Grad der Selbstfinanzierung [%]"]

{"sheet":"Kennz2_L","index":6,"n_rows":32,"n_cols":7,"rows_kept":32,"cut":false,"hidden":true,"merged":[[6,3,6,5]]}
[]
[]
[null,null,{"$f":"Daten!C3","v":"Lernmodul M 04:"}]
[null,null,{"$f":"Daten!C4","v":"Betriebswirtschaftliche Kennzahlen"}]
[]
[null,null,{"$f":"Daten!C6","v":"Thema: Bilanzanalyse"}]
[null,null,null," Analyse der Kapitalausstattung: Musterlösung"]
[]
[null,null,null,null,null,"Berichtsjahr","Vorjahr"]
[null,null,null,null,"Eigenkapital",{"$f":"Strukturbilanz_L!D24","v":8200},{"$f":"Strukturbilanz_L!F24","v":6960}]
[null,null,null,null,"Gesamtkapital",{"$f":"Strukturbilanz_L!D31","v":16000},{"$f":"Strukturbilanz_L!F31","v":15000}]
[null,null,"  Eigenkapitalquote [%]",null,null,{"$f":"F10*100/F11","v":51.25},{"$f":"G10*100/G11","v":46.4}]
[]
[null,null,null,null,null,"Berichtsjahr","Vorjahr"]
[null,null,null,null,"Fremdkapital",{"$f":"Strukturbilanz_L!D27+Strukturbilanz_L!D30","v":7800},{"$f":"Strukturbilanz_L!F27+Strukturbilanz_L!F30","v":8040}]
[null,null,null,null,"Eigenkapital",{"$f":"Strukturbilanz_L!D24","v":8200},{"$f":"Strukturbilanz_L!F24","v":6960}]
[null,null,"  Grad der Verschuldung [%]",null,null,{"$f":"F15*100/F16","v":95.121951219512198},{"$f":"G15*100/G16","v":115.51724137931035}]
[]
[null,null,null,null,null,"Berichtsjahr","Vorjahr"]
[null,null,null,null,"Langfr. Fremdkapital",{"$f":"Strukturbilanz_L!D27","v":5720},{"$f":"Strukturbilanz_L!F27","v":4980}]
[null,null,null,null,"Gesamtkapital",{"$f":"Strukturbilanz_L!D31","v":16000},{"$f":"Strukturbilanz_L!F31","v":15000}]
[null,null," Anteil des langfr. Fremdkapitals [%]",null,null,{"$f":"F20*100/F21","v":35.75},{"$f":"G20*100/G21","v":33.200000000000003}]
[]
[null,null,null,null,null,"Berichtsjahr","Vorjahr"]
[null,null,null,null,"Kurzfr. Fremdkapital",{"$f":"Strukturbilanz_L!D30","v":2080},{"$f":"Strukturbilanz_L!F30","v":3060}]
[null,null,null,null,"Gesamtkapital",{"$f":"Strukturbilanz_L!D31","v":16000},{"$f":"Strukturbilanz_L!F31","v":15000}]
[null,null,"  Anteil des kurzfr. Fremdkapitals [%]",null,null,{"$f":"F25*100/F26","v":13},{"$f":"G25*100/G26","v":20.399999999999999}]
[]
[null,null,null,null,null,"Berichtsjahr","Vorjahr"]
[null,null,null,null,"Gewinnrücklagen",{"$f":"Strukturbilanz_L!D23","v":1400},{"$f":"Strukturbilanz_L!F23","v":960}]
[null,null,null,null,"Nominalkapital",{"$f":"Strukturbilanz_L!D22","v":6800},{"$f":"Strukturbilanz_L!F22","v":6000}]
[null,null," Grad der Selbstfinanzierung [%]",null,null,{"$f":"F30*100/F31","v":20.588235294117649},{"$f":"G30*100/G31","v":16}]

{"sheet":"Kennz3","index":7,"n_rows":34,"n_cols":7,"rows_kept":34,"cut":false,"hidden":false,"merged":[[7,3,7,5]]}
[]
[]
[null,null,{"$f":"Daten!C3","v":"Lernmodul M 04:"}]
[null,null,{"$f":"Daten!C4","v":"Betriebswirtschaftliche Kennzahlen"}]
[]
[null,null,{"$f":"Daten!C6","v":"Thema: Bilanzanalyse"}]
[]
[null,null,null,"Analyse der Zahlungsbereitschaft"]
[]
[null,null,null,null,null,"Berichtsjahr","Vorjahr"]
[]
[]
[null,null,"Liquiditätsgrad  I (Barliquidität) [%]"]
[]
[null,null,null,null,null,"Berichtsjahr","Vorjahr"]
[]
[]
[]
[null,null,"Liquiditätsgrad II (einzugsbedingte Liquidität) [%]"]
[]
[null,null,null,null,null,"Berichtsjahr","Vorjahr"]
[]
[]
[null,null,"Liquiditätsgrad  III (umsatzbedingte Liquidität) [%]"]
[]
[]
[null,null,"Liquiditäts-Staffelrechnung",null,"Berichtsjahr","Vorjahr"]
[null,null,"   Flüssige Mittel"]
[null,null,"./.kurzfristiges Fremdkapital"]
[null,null,"= Unterdeckung (1. Stufe)"]
[null,null,"+ Forderungen"]
[null,null,"= Über- bzw. Unterdeckung  (2. Stufe)"]
[null,null,"+ Vorräte"]
[null,null,"= Überdeckung (3.Stufe)"]

{"sheet":"Kennz3_L","index":8,"n_rows":34,"n_cols":7,"rows_kept":34,"cut":false,"hidden":true,"merged":[[7,3,7,5]]}
[]
[]
[null,null,{"$f":"Daten!C3","v":"Lernmodul M 04:"}]
[null,null,{"$f":"Daten!C4","v":"Betriebswirtschaftliche Kennzahlen"}]
[]
[null,null,{"$f":"Daten!C6","v":"Thema: Bilanzanalyse"}]
[]
[null,null,null,"Analyse der Zahlungsbereitschaft: Musterlösung"]
[]
[null,null,null,null,null,"Berichtsjahr","Vorjahr"]
[null,null,null,null,"Flüssige Mittel",{"$f":"Strukturbilanz_L!D16","v":1020},{"$f":"Strukturbilanz_L!F16","v":580}]
[null,null,null,null,"Kurzfr. Fremdkapital",{"$f":"Strukturbilanz_L!D30","v":2080},{"$f":"Strukturbilanz_L!F30","v":3060}]
[null,null,"Liquiditätsgrad  I (Barliquidität) [%]",null,null,{"$f":"F11*100/F12","v":49.03846153846154},{"$f":"G11*100/G12","v":18.954248366013072}]
[]
[null,null,null,null,null,"Berichtsjahr","Vorjahr"]
[null,null,null,null,"Flüssige Mittel ",{"$f":"Strukturbilanz_L!D16","v":1020},{"$f":"Strukturbilanz_L!F16","v":580}]
[null,null,null,null,"Forderungen",{"$f":"Strukturbilanz_L!D15","v":2300},{"$f":"Strukturbilanz_L!F15","v":1350}]
[null,null,null,null,"Kurzfr. Fremdkapital",{"$f":"Strukturbilanz_L!D30","v":2080},{"$f":"Strukturbilanz_L!F30","v":3060}]
[null,null,"Liquiditätsgrad II (einzugsbedingte Liquidität) [%]",null,null,{"$f":"(F16+F17)*100/F18","v":159.61538461538461},{"$f":"(G16+G17)*100/G18","v":63.071895424836605}]
[]
[null,null,null,null,null,"Berichtsjahr","Vorjahr"]
[null,null,null,null,"Umlaufvermögen",{"$f":"Strukturbilanz_L!D17","v":8180},{"$f":"Strukturbilanz_L!F17","v":7980}]
[null,null,null,null,"Kurzfr. Fremdkapital",{"$f":"Strukturbilanz_L!D30","v":2080},{"$f":"Strukturbilanz_L!F30","v":3060}]
[null,null,"Liquiditätsgrad  III (umsatzbedingte Liquidität) [%]",null,null,{"$f":"F22*100/F23","v":393.26923076923077},{"$f":"G22*100/G23","v":260.78431372549022}]
[]
[]
[null,null,"Liquiditäts-Staffelrechnung",null,"Berichtsjahr","Vorjahr"]
[null,null,"   Flüssige Mittel",null,{"$f":"Strukturbilanz_L!D16","v":1020},{"$f":"Strukturbilanz_L!F16","v":580}]
[null,null,"./.kurzfristiges Fremdkapital",null,{"$f":"Strukturbilanz_L!D30","v":2080},{"$f":"Strukturbilanz_L!F30","v":3060}]
[null,null,"= Unterdeckung (1. Stufe)",null,{"$f":"E28-E29","v":-1060},{"$f":"F28-F29","v":-2480}]
[null,null,"+ Forderungen",null,{"$f":"Strukturbilanz_L!D15","v":2300},{"$f":"Strukturbilanz_L!F15","v":1350}]
[null,null,"= Über- bzw. Unterdeckung  (2. Stufe)",null,{"$f":"E30+E31","v":1240},{"$f":"F30+F31","v":-1130}]
[null,null,"+ Vorräte",null,{"$f":"Strukturbilanz_L!D14","v":4860},{"$f":"Strukturbilanz_L!F14","v":6050}]
[null,null,"= Überdeckung (3.Stufe)",null,{"$f":"E32+E33","v":6100},{"$f":"F32+F33","v":4920}]